bitfinex/quotes_SOLUSD_20220101
["timestamp","ask_amount","ask_price","bid_price","bid_amount"]
[1641054699914,1.5684,174.47,174.36,18.2681]
[1641054700117,8.6,174.46,174.36,18.2681]
[1641054700515,8.6,174.46,174.36,9.9381]
[1641054700516,9.36,174.46,174.36,9.9381]
[1641054702222,9.36,174.46,174.34,8.6024]
[1641054702418,9.36,174.46,174.32,1.2968]
[1641054702619,25.182324,174.44,174.32,1.2968]
[1641054703020,25.942324,174.44,174.32,1.2968]
[1641054703224,25.942324,174.44,174.34,8.6028]
[1641054704021,2.0725,174.44,174.34,8.6028]
[1641054704620,8.603,174.4,174.34,8.6028]
[1641054705022,8.863,174.4,174.34,8.6028]
[1641054705221,0.26,174.4,174.34,8.6028]
[1641054705524,58.55497572,174.44,174.34,8.6028]
[1641054706421,8.6029,174.41,174.34,8.6028]
[1641054706625,8.8629,174.41,174.34,8.6028]
[1641054706922,9.3629,174.41,174.33,8.6033]
[1641054707723,8.8629,174.41,174.33,8.6033]
[1641054709929,9.3629,174.41,174.33,8.6033]
[1641054710526,8.8629,174.41,174.33,8.6033]
[1641054710927,9.3629,174.41,174.33,8.6033]
[1641054712828,8.8629,174.41,174.33,8.6033]
[1641054713029,9.3629,174.41,174.32,1.2968]
[1641054713428,9.3629,174.41,174.31,16.9338]
[1641054713831,9.3629,174.41,174.31,8.33]
[1641054714031,10.6707,174.41,174.31,8.33]
[1641054716037,10.6707,174.41,174.3,8.6047]
[1641054719335,10.6707,174.41,174.28,9.5877]
[1641054719536,10.6707,174.41,174.28,1.2577]
[1641054720139,28.6853,174.39,174.28,1.2577]
[1641054720539,29.4453,174.39,174.28,1.2577]
[1641054720940,29.51147008,174.37,174.28,1.2577]
[1641054721339,30.27147008,174.37,174.28,1.2577]
[1641054721741,8.6058,174.34,174.28,9.8633]
[1641054722140,8.8658,174.34,174.28,9.8633]
[1641054723441,8.8658,174.34,174.28,1.2577]
[1641054726343,8.8658,174.34,174.28,9.8633]
[1641054728953,8.8658,174.34,174.28,1.2577]
[1641054730576,8.8658,174.34,174.26,8.6066]
[1641054730779,9.3658,174.34,174.24,90.882]
[1641054730981,9.3658,174.34,174.24,19.6047]
[1641054731580,9.3658,174.34,174.25,8.6071]
[1641054732680,9.3658,174.34,174.24,19.6047]
[1641054732681,9.3658,174.34,174.24,11.0147]
[1641054732880,9.3658,174.34,174.24,8.4228]
[1641054736084,10.716,174.34,174.24,8.4228]
[1641054737782,10.456,174.34,174.24,8.4228]
[1641054739085,10.716,174.34,174.24,8.4228]
[1641054739883,22.68884094,174.34,174.24,8.4228]
[1641054740083,22.42884094,174.34,174.24,8.4228]
[1641054741589,22.68884094,174.34,174.24,8.4228]
[1641054746695,10.716,174.34,174.24,8.4228]
[1641054748097,10.716,174.34,174.23,1.2445]
[1641054748328,86.2311,174.34,174.23,1.2445]
[1641054749797,87.65779368,174.34,174.2,8.33]
[1641054750199,87.65779368,174.34,174.2,9.6659]
[1641054754208,95.98779368,174.34,174.2,1.3359]
[1641054755305,94.5611,174.34,174.2,1.3359]
[1641054756204,2.99204234,174.33,174.2,1.3359]
[1641054756406,8.6103,174.27,174.2,1.3359]
[1641054756608,8.8703,174.27,174.2,1.3359]
[1641054756808,9.3703,174.27,174.2,1.3359]
[1641054758006,8.8703,174.27,174.2,1.3359]
[1641054758407,9.3703,174.27,174.2,1.3359]
[1641054758906,9.1103,174.27,174.2,1.3359]
[1641054759109,8.6103,174.27,174.2,9.9454]
[1641054759915,8.6087,174.28,174.2,9.9454]
[1641054760519,8.8687,174.28,174.2,9.9454]
[1641054761119,8.6087,174.28,174.2,9.9454]
[1641054762522,8.8687,174.28,174.2,9.9454]
[1641054763647,8.6081,174.3,174.21,8.33]
[1641054763846,25.44367724,174.39,174.32,4.09667453]
[1641054764052,3.27018081,174.43,174.36,71.0]
[1641054764248,3.27018081,174.43,174.35,104.13]
[1641054764249,3.27018081,174.43,174.37,8.33]
[1641054764451,3.27018081,174.5,174.38,8.33]
[1641054764650,3.27018081,174.5,174.39,8.33]
[1641054764949,78.287,174.57,174.44,8.5971]
[1641054765149,78.287,174.57,174.45,8.33]
[1641054765950,26.95360935,174.56,174.45,16.9267]
[1641054766552,26.95360935,174.56,174.45,8.33]
[1641054766752,27.45360935,174.56,174.45,8.33]
[1641054768356,26.95360935,174.56,174.45,8.33]
[1641054768557,26.95360935,174.56,174.45,16.9269]
[1641054768762,26.95360935,174.56,174.45,17.1869]
[1641054769560,0.28779108,174.58,174.45,17.1869]
[1641054769759,0.28779108,174.58,174.46,1.42669368]
[1641054769960,0.28779108,174.58,174.5,8.5944]
[1641054770458,0.28779108,174.58,174.51,0.50197092]
[1641054773962,8.88349108,174.58,174.51,0.50197092]
[1641054774163,0.28779108,174.58,174.51,0.50197092]
[1641054774365,0.78779108,174.58,174.51,0.50197092]
[1641054774592,0.28779108,174.58,174.51,9.09617092]
[1641054775495,0.28779108,174.58,174.51,0.50197092]
[1641054775887,0.28779108,174.58,174.51,8.83197092]
[1641054776588,0.28779108,174.58,174.51,17.42607092]
[1641054780493,30.31452665,174.58,174.51,8.83197092]
[1641054780893,31.07452665,174.58,174.51,8.83197092]
[1641054781395,39.66972665,174.58,174.51,8.83197092]
[1641054781595,9.64299108,174.58,174.51,8.83197092]
[1641054782396,65.30759108,174.63,174.51,8.83197092]
[1641054782595,94.39623742,174.63,174.51,8.83197092]
[1641054782797,8.5943,174.59,174.51,17.42627092]
[1641054782996,8.5943,174.59,174.51,17.92627092]
[1641054783598,8.5943,174.59,174.51,8.83197092]
[1641054783799,8.5943,174.59,174.51,9.33197092]
[1641054784299,31.99332916,174.59,174.51,9.33197092]
[1641054784499,32.75332916,174.59,174.51,9.33197092]
[1641054785700,8.8543,174.59,174.51,17.92627092]
[1641054786001,9.3543,174.59,174.51,17.92627092]
[1641054787508,9.3543,174.59,174.51,9.33197092]
[1641054787708,9.3543,174.59,174.51,0.50197092]
[1641054787906,9.3543,174.59,174.46,8.33]
[1641054788306,9.3543,174.59,174.43,8.33]
[1641054788507,11.9495,174.59,174.43,8.33]
[1641054789313,11.9495,174.59,174.43,17.428]
[1641054793514,2.98743733,174.58,174.43,17.428]
[1641054793814,40.06782112,174.52,174.43,17.428]
[1641054794014,40.32782112,174.52,174.43,17.428]
[1641054794815,31.73032112,174.52,174.43,17.428]
[1641054795016,0.26,174.52,174.43,18.85469368]
[1641054795216,47.09698205,174.59,174.43,31.21810582]
[1641054795415,47.09698205,174.59,174.43,31.47810582]
[1641054795817,29.1542,174.59,174.43,31.47810582]
[1641054796015,26.26264527,174.58,174.43,31.47810582]
[1641054796417,26.76264527,174.58,174.43,31.47810582]
[1641054796718,8.5961,174.55,174.43,31.47810582]
[1641054797116,23.67655007,174.54,174.43,31.47810582]
[1641054797519,23.93655007,174.54,174.43,31.47810582]
[1641054797818,32.53275007,174.54,174.43,31.47810582]
[1641054798417,33.03275007,174.54,174.43,31.47810582]
[1641054799419,32.53275007,174.54,174.43,31.47810582]
[1641054801251,33.03275007,174.54,174.43,31.47810582]
[1641054801450,33.03275007,174.54,174.43,31.21810582]
[1641054801651,33.03275007,174.54,174.43,18.85469368]
[1641054803754,33.03275007,174.54,174.43,17.428]
[1641054808561,32.77275007,174.54,174.43,17.428]
[1641054808761,32.77275007,174.54,174.43,17.688]
[1641054809362,32.27275007,174.54,174.43,17.688]
[1641054809962,32.53275007,174.54,174.43,17.688]
[1641054810465,32.53275007,174.54,174.43,17.428]
[1641054810466,33.03275007,174.54,174.43,17.428]
[1641054812163,33.03275007,174.54,174.43,17.688]
[1641054812463,33.03275007,174.54,174.43,17.428]
[1641054813663,32.77275007,174.54,174.43,17.428]
[1641054814864,33.03275007,174.54,174.43,17.688]
[1641054815063,33.03275007,174.54,174.43,17.428]
[1641054820570,33.03275007,174.54,174.43,17.688]
[1641054824874,32.53275007,174.54,174.43,17.428]
[1641054827136,8.5962,174.54,174.43,17.428]
[1641054827312,8.5957,174.55,174.43,135.60810582]
[1641054827511,28.6523,174.6,174.45,104.13]
[1641054827712,79.5515,174.6,174.5,8.5946]
[1641054827916,80.0515,174.6,174.51,8.33]
[1641054828113,25.35849567,174.59,174.51,8.33]
[1641054828312,8.5941,174.59,174.51,8.33]
[1641054828515,80.0515,174.6,174.51,8.83]
[1641054829714,88.6452,174.6,174.51,17.4243]
[1641054830513,88.9052,174.6,174.51,17.4243]
[1641054833720,88.6452,174.6,174.51,17.4243]
[1641054833924,79.5515,174.6,174.51,17.4243]
[1641054834121,28.6419,174.66,174.51,17.6843]
[1641054834320,1.224,174.68,174.51,17.6843]
[1641054834322,0.5,174.61,174.51,17.6843]
[1641054834520,0.5,174.61,174.52,1.3148]
[1641054834720,0.5,174.61,174.56,8.5912]
[1641054834921,30.3071422,174.67,174.57,8.33]
[1641054835223,8.5913,174.64,174.57,8.33]
[1641054835421,1.2848,174.67,174.57,8.83]
[1641054836522,1.5448,174.67,174.57,8.83]
[1641054836723,8.5908,174.66,174.57,17.4212]
[1641054838350,9.0908,174.66,174.57,17.4212]
[1641054839529,9.0908,174.66,174.57,17.6812]
[1641054839729,9.3508,174.66,174.57,17.4212]
[1641054841232,9.0908,174.66,174.57,17.4212]
[1641054842631,9.3508,174.66,174.57,17.4212]
[1641054843433,0.5,174.66,174.57,17.4212]
[1641054843632,0.5,174.66,174.57,17.6812]
[1641054843832,78.5638,174.68,174.57,17.6812]
[1641054844032,78.5638,174.68,174.57,17.4212]
[1641054845031,78.5638,174.68,174.57,18.7258]
[1641054845433,78.8238,174.68,174.57,18.7258]
[1641054845734,87.4132,174.68,174.57,18.7258]
[1641054846169,86.9132,174.68,174.57,18.7258]
[1641054852674,8.591,174.65,174.57,18.7258]
[1641054852875,0.5,174.65,174.57,18.2258]
[1641054853075,0.26,174.65,174.57,18.2258]
[1641054853575,0.76,174.67,174.57,18.7258]
[1641054853779,8.5908,174.66,174.57,18.7258]
[1641054853977,9.3508,174.66,174.57,18.7258]
[1641054854578,0.76,174.66,174.57,18.7258]
[1641054854979,79.3888,174.68,174.57,18.7258]
[1641054855377,79.3888,174.68,174.57,18.9858]
[1641054855577,87.9782,174.68,174.57,18.9858]
[1641054856481,88.2382,174.68,174.57,18.9858]
[1641054857380,88.2382,174.68,174.57,18.7258]
[1641054863591,87.9782,174.68,174.57,18.7258]
[1641054864487,87.9782,174.68,174.57,18.9858]
[1641054864919,88.2382,174.68,174.57,18.9858]
[1641054869624,3.27018081,174.73,174.6,104.13]
[1641054869826,3.27018081,174.73,174.61,6.83]
[1641054870122,91.19738081,174.78,174.61,8.51669368]
[1641054870320,91.19738081,174.78,174.62,1.3544]
[1641054870523,8.5857,174.77,174.63,8.33]
[1641054870921,9.0857,174.77,174.69,8.5853]
[1641054871124,0.5,174.77,174.7,8.33]
[1641054871323,79.4388,174.78,174.7,8.33]
[1641054871724,88.0238,174.78,174.7,8.33]
[1641054872726,88.5238,174.78,174.7,8.33]
[1641054873024,88.5238,174.78,174.7,7.83]
[1641054873724,88.7838,174.78,174.7,7.83]
[1641054876826,88.7838,174.78,174.66,16.9165]
[1641054877027,88.7838,174.78,174.66,8.33]
[1641054885141,97.1138,174.78,174.63,1.3178]
[1641054885335,8.5898,174.7,174.63,1.3178]
[1641054885538,8.8498,174.7,174.63,1.3178]
[1641054885736,9.3498,174.7,174.63,1.3178]
[1641054886340,9.3498,174.7,174.61,8.33]
[1641054886539,9.3498,174.7,174.59,9.6402]
[1641054886737,9.3498,174.7,174.59,1.3102]
[1641054886738,10.6367,174.7,174.59,1.3102]
[1641054890243,10.3767,174.7,174.59,1.3102]
[1641054891640,10.6367,174.7,174.59,1.3102]
[1641054892541,10.3767,174.7,174.59,1.3102]
[1641054893140,10.3767,174.7,174.58,1.292]
[1641054893542,83.7361,174.7,174.58,1.292]
[1641054894043,83.9961,174.7,174.58,1.292]
[1641054896148,83.9961,174.7,174.56,8.33]
[1641054897050,85.61541406,174.7,174.56,8.33]
[1641054897449,1.61931406,174.69,174.56,8.33]
[1641054897649,8.5929,174.63,174.56,8.33]
[1641054897849,41.02157366,174.63,174.56,8.33]
[1641054898151,41.28157366,174.63,174.56,8.33]
[1641054899272,40.78157366,174.63,174.56,8.33]
[1641054899473,8.5929,174.63,174.56,8.33]
[1641054899672,9.0929,174.63,174.56,8.33]
[1641054900976,9.3529,174.63,174.56,8.33]
[1641054901375,8.5929,174.63,174.56,8.33]
[1641054901575,8.5907,174.65,174.56,8.33]
[1641054902178,8.5907,174.65,174.56,8.83]
[1641054902378,8.5907,174.65,174.56,20.58173931]
[1641054902778,8.8507,174.65,174.56,20.32173931]
[1641054903578,8.8507,174.65,174.56,28.91243931]
[1641054903779,9.3507,174.65,174.56,19.82173931]
[1641054904978,9.3507,174.65,174.56,8.33]
[1641054907483,9.3507,174.65,174.55,1.2968]
[1641054909083,9.3507,174.65,174.55,9.6268]
[1641054910086,8.8507,174.65,174.55,11.05349368]
[1641054911089,8.8507,174.65,174.55,19.64479368]
[1641054911589,8.8507,174.65,174.55,20.14479368]
[1641054911988,9.3507,174.65,174.55,20.14479368]
[1641054912491,8.8507,174.65,174.55,20.14479368]
[1641054912688,9.3507,174.65,174.55,19.64479368]
[1641054913992,9.3507,174.65,174.55,9.6268]
[1641054915092,9.0907,174.65,174.55,9.6268]
[1641054915591,9.0907,174.65,174.55,18.2183]
[1641054915792,8.5907,174.65,174.55,18.2183]
[1641054915991,9.0907,174.65,174.56,1.42669368]
[1641054916193,8.5907,174.65,174.57,8.33]
[1641054916393,8.5898,174.66,174.57,8.33]
[1641054916892,8.5898,174.66,174.57,16.9205]
[1641054917091,9.0898,174.66,174.57,16.9205]
[1641054917292,9.0898,174.66,174.57,18.2366]
[1641054917491,9.3498,174.66,174.57,18.2366]
[1641054917792,8.8498,174.66,174.57,18.2366]
[1641054919692,9.3498,174.66,174.57,18.2366]
[1641054919894,8.8498,174.66,174.57,18.2366]
[1641054920695,8.8498,174.66,174.57,20.16329368]
[1641054920895,9.3498,174.66,174.57,18.7366]
[1641054921095,8.8498,174.66,174.57,18.2366]
[1641054921296,8.8498,174.66,174.57,18.7366]
[1641054921896,9.3498,174.66,174.57,18.7366]
[1641054922296,9.0898,174.66,174.57,18.2366]
[1641054922497,8.5898,174.66,174.57,18.2366]
[1641054922896,9.0898,174.66,174.57,18.2366]
[1641054923499,9.0898,174.66,174.58,1.42669368]
[1641054923699,8.8498,174.66,174.59,8.33]
[1641054924099,8.8498,174.66,174.58,1.42669368]
[1641054924302,8.8498,174.66,174.59,8.33]
[1641054924500,8.8498,174.66,174.58,10.01689368]
[1641054924905,8.8498,174.66,174.59,8.33]
[1641054925104,8.5898,174.66,174.59,8.33]
[1641054925308,73.3594,174.7,174.59,15.279]
[1641054925505,1.2807,174.72,174.59,24.1286]
[1641054925706,80.59851406,174.73,174.6,2.77219368]
[1641054925905,0.5,174.72,174.61,8.33]
[1641054926109,80.59851406,174.73,174.61,8.33]
[1641054926309,81.09851406,174.73,174.61,8.33]
[1641054926506,109.72651406,174.73,174.61,10.01669368]
[1641054926706,30.74731406,174.73,174.62,1.2397]
[1641054927010,30.74731406,174.73,174.63,8.33]
[1641054927205,29.128,174.73,174.63,8.33]
[1641054927606,8.5881,174.7,174.63,8.33]
[1641054928008,9.0881,174.7,174.63,8.33]
[1641054928207,8.5881,174.7,174.63,8.33]
[1641054928405,9.0881,174.7,174.63,8.33]
[1641054928606,8.5881,174.7,174.63,8.33]
[1641054929007,9.3481,174.7,174.63,8.33]
[1641054930009,8.8481,174.7,174.63,8.33]
[1641054930211,8.5881,174.7,174.63,8.33]
[1641054930810,9.0881,174.7,174.63,8.33]
[1641054931213,8.5881,174.7,174.63,8.33]
[1641054931615,8.8481,174.7,174.63,8.33]
[1641054934236,9.3481,174.7,174.63,8.33]
[1641054936234,9.3481,174.7,174.62,1.2397]
[1641054937339,9.3481,174.7,174.63,8.33]
[1641054938039,9.3481,174.7,174.62,1.2397]
[1641054938440,9.3481,174.7,174.63,8.33]
[1641054939139,9.3481,174.7,174.62,1.2397]
[1641054939643,9.3481,174.7,174.62,9.5697]
[1641054939943,9.3481,174.7,174.62,1.2397]
[1641054941241,9.3481,174.7,174.63,8.33]
[1641054941441,9.3481,174.7,174.62,1.2397]
[1641054942140,8.8481,174.7,174.62,1.2397]
[1641054942341,9.3481,174.7,174.62,1.2397]
[1641054942643,9.3481,174.7,174.62,9.5697]
[1641054943042,9.3481,174.7,174.62,8.33]
[1641054943242,9.3481,174.7,174.58,8.33]
[1641054944145,8.591,174.64,174.58,8.33]
[1641054944547,8.851,174.64,174.58,8.33]
[1641054948447,9.351,174.64,174.58,8.33]
[1641054949249,9.351,174.64,174.56,1.2951]
[1641054951950,9.351,174.64,174.55,8.33]
[1641054952151,23.73983022,174.63,174.53,75.3803]
[1641054952351,8.5938,174.58,174.52,9.6214]
[1641054952550,8.8538,174.58,174.49,8.33]
[1641054952750,9.3538,174.58,174.49,8.33]
[1641054955958,8.8538,174.58,174.49,8.33]
[1641054956354,9.3538,174.58,174.49,8.83]
[1641054956955,9.3538,174.58,174.49,16.925]
[1641054957353,9.3538,174.58,174.49,17.425]
[1641054957554,8.8538,174.58,174.49,17.425]
[1641054957954,8.5938,174.58,174.49,17.685]
[1641054958159,1.2367,174.66,174.5,104.13]
[1641054958387,1.7367,174.66,174.51,8.33]
[1641054958859,3.16339368,174.66,174.51,8.33]
[1641054959055,8.5931,174.6,174.51,8.59]
[1641054959255,8.5931,174.6,174.51,10.4101]
[1641054959455,8.8531,174.6,174.51,10.4101]
[1641054960459,8.5931,174.6,174.51,10.4101]
[1641054960661,8.5931,174.6,174.51,19.0042]
[1641054960858,8.5931,174.6,174.51,18.7442]
[1641054961457,9.0931,174.6,174.51,18.7442]
[1641054962062,9.3531,174.6,174.51,18.7442]
[1641054963266,9.3531,174.6,174.51,9.6501]
[1641054963463,9.3531,174.6,174.51,8.33]
[1641054963666,9.3531,174.6,174.49,8.33]
[1641054963866,9.3531,174.6,174.49,9.6473]
[1641054964466,10.7024,174.6,174.49,9.6473]
[1641054965074,10.7024,174.6,174.49,10.1473]
[1641054965269,10.7024,174.6,174.49,9.6473]
[1641054965472,10.7024,174.6,174.49,10.1473]
[1641054965890,10.7024,174.6,174.49,9.6473]
[1641054966288,10.7024,174.6,174.49,10.1473]
[1641054966690,10.7024,174.6,174.49,18.7425]
[1641054967494,8.5931,174.6,174.49,19.0025]
[1641054967695,8.5931,174.6,174.49,18.7425]
[1641054968094,8.5931,174.6,174.49,19.0025]
[1641054968501,9.0931,174.6,174.49,19.0025]
[1641054968695,9.3531,174.6,174.49,19.0025]
[1641054969495,8.5931,174.6,174.49,19.0025]
[1641054969695,9.0931,174.6,174.49,19.0025]
[1641054969898,9.0931,174.6,174.49,20.42919368]
[1641054970097,8.5931,174.6,174.49,20.42919368]
[1641054970797,9.0931,174.6,174.49,20.42919368]
[1641054971399,9.0931,174.6,174.49,20.16919368]
[1641054971599,9.3531,174.6,174.49,20.16919368]
[1641054972400,9.3531,174.6,174.49,20.42919368]
[1641054972599,9.3531,174.6,174.49,20.16919368]
[1641054973001,9.3531,174.6,174.49,20.42919368]
[1641054973802,9.3531,174.6,174.49,20.16919368]
[1641054974003,9.3531,174.6,174.49,18.7425]
[1641054974203,9.3531,174.6,174.49,18.2425]
[1641054975405,9.3531,174.6,174.49,18.7425]
[1641054978914,9.3531,174.6,174.48,77.8285]
[1641054978915,9.3531,174.6,174.46,9.75669368]
[1641054979111,9.3531,174.6,174.46,8.33]
[1641054979514,9.3531,174.6,174.46,8.83]
[1641054979714,1.272,174.59,174.46,8.83]
[1641054979914,8.5969,174.53,174.46,8.83]
[1641054980114,8.8569,174.53,174.46,8.83]
[1641054980715,8.8569,174.53,174.46,8.33]
[1641054980917,9.3569,174.53,174.43,8.33]
[1641054981318,9.3569,174.53,174.43,8.83]
[1641054982119,9.3569,174.53,174.43,8.33]
[1641054982522,9.3569,174.53,174.4,8.33]
[1641054982820,9.3569,174.53,174.41,8.5988]
[1641054983220,9.3569,174.53,174.42,8.33]
[1641054983422,9.3569,174.53,174.42,8.83]
[1641054984524,9.3569,174.53,174.42,8.33]
[1641054984742,9.3569,174.53,174.42,16.9287]
[1641054984942,10.61,174.53,174.42,17.4287]
[1641054985344,10.61,174.53,174.42,16.9287]
[1641054985842,10.61,174.53,174.42,17.4287]
[1641054986048,10.61,174.53,174.42,8.33]
[1641054989348,10.11,174.53,174.42,8.83]
[1641054989547,10.11,174.53,174.42,8.33]
[1641054990447,10.11,174.53,174.42,8.83]
[1641054990949,10.61,174.53,174.42,8.33]
[1641054991149,9.61,174.53,174.42,8.33]
[1641054992350,9.61,174.53,174.42,8.83]
[1641054992751,9.61,174.53,174.42,8.33]
[1641054992951,9.35,174.53,174.42,8.33]
[1641054993357,9.35,174.53,174.42,8.83]
[1641054993559,9.35,174.53,174.42,8.33]
[1641054993854,9.35,174.53,174.38,1.2256]
[1641054994055,16.9288,174.42,174.35,8.33]
[1641054994262,57.9381595,174.42,174.33,8.33]
[1641054994453,31.084,174.42,174.32,4.09667453]
[1641054994653,31.084,174.42,174.34,92.9]
[1641054995053,31.084,174.42,174.32,4.09667453]
[1641054999058,30.824,174.42,174.32,4.09667453]
[1641054999359,21.7218,174.42,174.32,12.42667453]
[1641054999558,21.7218,174.42,174.32,21.02987453]
[1641054999857,21.7218,174.42,174.32,21.52987453]
[1641055000057,21.7218,174.42,174.32,21.78987453]
[1641055001972,21.9818,174.42,174.32,21.78987453]
[1641055005892,21.9818,174.42,174.32,21.52987453]
[1641055006093,21.9818,174.42,174.32,21.78987453]
[1641055008196,21.9818,174.42,174.32,21.52987453]
[1641055008800,22.4818,174.42,174.32,21.02987453]
[1641055008997,22.4818,174.42,174.32,12.42667453]
[1641055009197,17.6888,174.42,174.32,12.42667453]
[1641055010600,17.6888,174.42,174.32,21.53017453]
[1641055012201,26.2922,174.42,174.32,21.03017453]
[1641055013004,26.2922,174.42,174.32,21.53017453]
[1641055013503,17.6888,174.42,174.32,21.53017453]
[1641055015105,26.2923,174.42,174.32,21.53017453]
[1641055015909,17.6888,174.42,174.32,21.53017453]
[1641055016610,17.6888,174.42,174.32,21.03017453]
[1641055016810,17.6888,174.42,174.32,21.53017453]
[1641055017609,26.2923,174.42,174.32,21.53017453]
[1641055017811,17.6888,174.42,174.32,21.53017453]
[1641055020917,17.1888,174.42,174.32,21.53017453]
[1641055021319,17.6888,174.42,174.32,21.03017453]
[1641055021615,26.2921,174.42,174.32,21.53017453]
[1641055022015,17.6888,174.42,174.32,21.53017453]
[1641055022216,17.6888,174.42,174.32,21.79017453]
[1641055023818,16.9288,174.42,174.32,21.53017453]
[1641055024016,16.9288,174.42,174.32,21.79017453]
[1641055025516,17.1888,174.42,174.32,21.79017453]
[1641055026119,17.1888,174.42,174.32,21.53017453]
[1641055027525,17.1888,174.42,174.32,21.79017453]
[1641055028724,17.6888,174.42,174.32,21.79017453]
[1641055029122,17.6888,174.42,174.32,21.03017453]
[1641055029525,17.6888,174.42,174.32,12.42667453]
[1641055029724,17.6888,174.42,174.32,4.09667453]
[1641055030324,27.71889368,174.42,174.32,4.09667453]
[1641055030926,29.33820774,174.42,174.32,4.09667453]
[1641055036637,29.33820774,174.42,174.33,8.33]
[1641055036837,3.27018081,174.46,174.42,47.08537962]
[1641055037038,3.27018081,174.46,174.43,8.33]
[1641055037252,3.27018081,174.46,174.44,0.50197092]
[1641055037253,8.081e-05,174.46,174.44,0.50197092]
[1641055037454,8.081e-05,174.46,174.45,8.33]
[1641055037657,4.90527121,174.5,174.46,36.0]
[1641055037857,4.90527121,174.5,174.48,8.595]
[1641055038056,4.90527121,174.5,174.48,16.925]
[1641055038457,5.56045808,174.5,174.48,8.33]
[1641055038658,41.0,174.5,174.48,8.33]
[1641055038862,41.76,174.5,174.48,8.33]
[1641055039056,22.86431903,174.56,174.48,8.33]
[1641055039258,23.36431903,174.56,174.48,8.33]
[1641055040260,78.6605,174.61,174.48,8.33]
[1641055040761,6.51739632,174.6,174.48,8.83]
[1641055040960,6.51739632,174.6,174.48,9.09]
[1641055041362,73.0579,174.62,174.48,17.6855]
[1641055041564,4.90527121,174.68,174.49,104.13]
[1641055041762,4.90527121,174.68,174.51,104.13]
[1641055041962,152.6627,174.71,174.52,8.33]
[1641055042361,152.6627,174.71,174.52,9.09]
[1641055042562,30.20213371,174.7,174.54,28.6333]
[1641055042763,30.20213371,174.7,174.55,8.33]
[1641055042961,36.71565506,174.7,174.55,9.09]
[1641055043461,30.70213371,174.7,174.55,9.09]
[1641055043660,30.70213371,174.7,174.6,8.5895]
[1641055044062,30.70213371,174.7,174.6,9.0895]
[1641055044262,30.70213371,174.7,174.6,8.5895]
[1641055044461,30.70213371,174.7,174.58,8.33]
[1641055044663,30.96213371,174.7,174.58,8.33]
[1641055044865,30.96213371,174.7,174.58,17.4202]
[1641055045062,8.5904,174.69,174.58,16.9202]
[1641055045468,9.3504,174.69,174.58,16.9202]
[1641055045666,9.3504,174.69,174.58,17.4202]
[1641055047069,9.0904,174.69,174.58,17.4202]
[1641055049179,8.5904,174.69,174.58,17.4202]
[1641055049378,9.3504,174.69,174.58,17.4202]
[1641055051482,9.3504,174.69,174.58,8.33]
[1641055051680,17.6804,174.69,174.53,1.3284]
[1641055051880,17.6804,174.69,174.52,8.33]
[1641055052885,17.6804,174.69,174.52,8.83]
[1641055053081,6.51491353,174.68,174.52,8.83]
[1641055053291,8.5934,174.6,174.49,8.33]
[1641055053485,27.41360698,174.59,174.5,0.5]
[1641055053887,28.17360698,174.59,174.49,8.83]
[1641055054287,8.5953,174.55,174.49,16.9249]
[1641055054486,8.8553,174.55,174.49,16.9249]
[1641055054692,8.8553,174.55,174.49,8.33]
[1641055055907,8.8553,174.55,174.44,9.5532]
[1641055055908,9.3553,174.55,174.44,9.5532]